fUST/lending_fUST_20250817
["ID","MTS","AMOUNT","RATE_DAILY","PERIOD"]
[379806248,1755414646228,-480.0,0.00020336,2]
[379806250,1755414646237,-480.0,0.00020336,2]
[379806252,1755414646246,-480.0,0.00020336,2]
[379806254,1755414646257,-480.0,0.00020336,2]
[379806256,1755414646266,-480.0,0.00020336,2]
[379806258,1755414646276,-1822.79,0.00020336,2]
[379806260,1755414646285,-480.0,0.00020336,2]
[379806262,1755414646295,-1646.01,0.00020336,2]
[379806264,1755414646304,-583.35,0.00020336,2]
[379806266,1755414646313,-480.0,0.00020336,2]
[379806267,1755414646323,-553.1,0.00020336,2]
[379806270,1755414646332,-480.0,0.00020336,2]
[379806271,1755414646342,-480.0,0.00020336,2]
[379806273,1755414646352,-480.0,0.00020336,2]
[379806275,1755414646362,-480.0,0.00020336,2]
[379806277,1755414646371,-480.0,0.00020336,2]
[379806280,1755414646381,-480.0,0.00020336,2]
[379806282,1755414646391,-480.0,0.00020336,2]
[379806284,1755414646401,-6414.92,0.00020336,2]
[379806286,1755414646410,-480.0,0.00020336,2]
[379806287,1755414646419,-541.55,0.00020336,2]
[379806289,1755414646429,-167.63,0.00020336,2]
[379806291,1755414646439,-480.0,0.00020336,2]
[379806293,1755414646448,-480.0,0.00020336,2]
[379806295,1755414646458,-236.93626699,0.00020336,2]
[379806296,1755414646467,-480.0,0.00020336,2]
[379806297,1755414646476,-480.0,0.00020336,2]
[379806298,1755414646487,-295.59533152,0.00020336,2]
[379806299,1755414646498,-480.0,0.00020336,2]
[379806300,1755414646507,-551.94,0.00020336,2]
[379806301,1755414646517,-480.0,0.00020336,2]
[379806302,1755414646526,-514.18,0.00020336,2]
[379806303,1755414646535,-480.0,0.00020336,2]
[379806304,1755414646545,-480.0,0.00020336,2]
[379806305,1755414646554,-480.0,0.00020336,2]
[379806306,1755414646564,-732.66,0.00020336,2]
[379806308,1755414646574,-480.0,0.00020336,2]
[379806309,1755414646583,-480.0,0.00020336,2]
[379806310,1755414646592,-480.0,0.00020336,2]
[379806311,1755414646602,-480.0,0.00020336,2]
[379806312,1755414646612,-260.0,0.00020336,2]
[379806313,1755414646621,-480.0,0.00020336,2]
[379806314,1755414646630,-480.0,0.00020336,2]
[379806315,1755414646639,-480.0,0.00020336,2]
[379806316,1755414646648,-480.0,0.00020336,2]
[379806317,1755414646657,-480.0,0.00020336,2]
[379806318,1755414646667,-460.0,0.00020336,2]
[379806319,1755414646676,-480.0,0.00020336,2]
[379806320,1755414646686,-480.0,0.00020336,2]
[379806321,1755414646695,-480.0,0.00020336,2]
[379806322,1755414646704,-480.0,0.00020336,2]
[379806323,1755414646713,-480.0,0.00020336,2]
[379806324,1755414646722,-480.0,0.00020336,2]
[379806325,1755414646731,-480.0,0.00020336,2]
[379806326,1755414646740,-480.0,0.00020336,2]
[379806327,1755414646749,-480.0,0.00020336,2]
[379806328,1755414646758,-480.0,0.00020336,2]
[379806329,1755414646767,-160.0,0.0002038,2]
[379806330,1755414646776,-160.0,0.00020395,2]
[379806331,1755414646785,-417.15472785,0.00020395,2]
[379806332,1755414646794,-375.77065697,0.00020395,2]
[379806333,1755414646803,-215.71995163,0.00020395,2]
[379806334,1755414646812,-232.1512529,0.00020395,2]
[379806335,1755414646825,-160.0,0.00020395,2]
[379806336,1755414646834,-160.0,0.00020395,2]
[379806337,1755414646844,-843.71309931,0.00020395,2]
[379806338,1755414646853,-160.0,0.00020395,2]
[379806339,1755414646862,-528.48506731,0.00020395,2]
[379806340,1755414646874,-160.0,0.00020395,2]
[379806341,1755414646904,-160.0,0.00020395,2]
[379806342,1755414646942,-160.0,0.00020395,2]
[379806343,1755414646956,-12682.46447135,0.00020396,2]
[379806344,1755414646966,-151.0,0.000204,3]
[379806345,1755414646975,-1082.44595013,0.000204,2]
[379806346,1755414646984,-174.87294168,0.000204,2]
[379806347,1755414646993,-571.70921891,0.00020403,2]
[379806348,1755414647002,-169.0,0.0002042,2]
[379806349,1755414647012,-160.0,0.00020426,2]
[379806350,1755414647021,-160.0,0.00020426,2]
[379806351,1755414647030,-500.0,0.00020434,2]
[379806352,1755414647040,-480.0,0.00020434,2]
[379806353,1755414647048,-480.0,0.00020434,2]
[379806354,1755414647058,-480.0,0.00020434,2]
[379806355,1755414647067,-1003.58,0.00020434,2]
[379806356,1755414647076,-1542.42,0.00020434,2]
[379806357,1755414647085,-995.53,0.00020434,2]
[379806358,1755414647094,-480.0,0.00020434,2]
[379806359,1755414647104,-480.0,0.00020434,2]
[379806360,1755414647113,-480.0,0.00020434,2]
[379806361,1755414647122,-1337.7,0.00020434,2]
[379806362,1755414647132,-480.0,0.00020434,2]
[379806363,1755414647141,-2855.58,0.00020434,2]
[379806364,1755414647150,-480.0,0.00020434,2]
[379806365,1755414647159,-480.0,0.00020434,2]
[379806366,1755414647168,-480.0,0.00020434,2]
[379806367,1755414647177,-959.07,0.00020434,2]
[379806368,1755414647186,-480.0,0.00020435,2]
[379806369,1755414647196,-480.0,0.00020435,2]
[379806370,1755414647205,-167.47,0.00020435,2]
[379806371,1755414647214,-480.0,0.00020435,2]
[379806372,1755414647223,-515.0,0.00020435,2]
[379806373,1755414647232,-480.0,0.00020435,2]
[379806374,1755414647242,-300.59,0.00020435,2]
[379806375,1755414647255,-353.49,0.00020435,2]
[379806376,1755414647264,-480.0,0.00020435,2]
[379806377,1755414647274,-401.73452311,0.00020435,2]
[379806378,1755414647283,-480.0,0.00020435,2]
[379806379,1755414647292,-234.72,0.00020435,2]
[379806380,1755414647302,-480.0,0.00020435,2]
[379806381,1755414647311,-461.14848999,0.00020435,2]
[379806382,1755414647320,-480.0,0.00020435,2]
[379806383,1755414647329,-420.0,0.00020435,2]
[379806384,1755414647339,-480.0,0.00020435,2]
[379806385,1755414647347,-480.0,0.00020435,2]
[379806386,1755414647357,-481.28,0.00020435,2]
[379806387,1755414647367,-480.0,0.00020435,2]
[379806388,1755414647378,-480.0,0.00020435,2]
[379806389,1755414647388,-480.0,0.00020435,2]
[379806390,1755414647397,-480.0,0.00020435,2]
[379806391,1755414647406,-480.0,0.00020435,2]
[379806392,1755414647415,-521.57441504,0.00020435,2]
[379806393,1755414647425,-480.0,0.00020435,2]
[379806394,1755414647434,-480.0,0.00020435,2]
[379806395,1755414647443,-480.0,0.00020435,2]
[379806396,1755414647452,-480.0,0.00020435,2]
[379806397,1755414647462,-480.0,0.00020435,2]
[379806398,1755414647471,-860.61,0.00020435,2]
[379806399,1755414647480,-480.0,0.00020435,2]
[379806400,1755414647490,-480.0,0.00020435,2]
[379806401,1755414647499,-480.0,0.00020435,2]
[379806402,1755414647508,-262.50774572,0.00020435,2]
[379806403,1755414647517,-480.0,0.00020435,2]
[379806404,1755414647526,-480.0,0.00020435,2]
[379806405,1755414647535,-384.19027929,0.00020435,2]
[379806406,1755414647544,-480.0,0.00020435,2]
[379806407,1755414647553,-480.0,0.00020435,2]
[379806408,1755414647563,-480.0,0.00020435,2]
[379806409,1755414647572,-497.19,0.00020435,2]
[379806410,1755414647581,-480.0,0.00020435,2]
[379806411,1755414647590,-480.0,0.00020435,2]
[379806412,1755414647599,-480.0,0.00020435,2]
[379806413,1755414647609,-583.72,0.00020435,2]
[379806414,1755414647618,-500.0,0.00020435,2]
[379806415,1755414647627,-500.0,0.00020435,2]
[379806416,1755414647637,-500.0,0.00020435,2]
[379806417,1755414647646,-433.68,0.00020435,2]
[379806418,1755414647655,-480.0,0.00020435,2]
[379806419,1755414647664,-480.0,0.00020435,2]
[379806420,1755414647673,-460.0,0.00020435,2]
[379806421,1755414647682,-480.0,0.00020435,2]
[379806422,1755414647804,-584.91,0.00020435,2]
[379806423,1755414647814,-480.0,0.00020435,2]
[379806424,1755414647823,-421.84587348,0.00020435,2]
[379806425,1755414647833,-480.0,0.00020435,2]
[379806426,1755414647842,-480.0,0.00020435,2]
[379806427,1755414647851,-230.65184105,0.00020435,2]
[379806428,1755414647860,-480.0,0.00020435,2]
[379806429,1755414647872,-480.0,0.00020435,2]
[379806430,1755414647881,-480.0,0.00020435,2]
[379806431,1755414647890,-6884.82,0.00020435,2]
[379806432,1755414647899,-289.43938164,0.00020435,2]
[379806433,1755414647909,-480.0,0.00020435,2]
[379806434,1755414647918,-229.5506776,0.00020435,2]
[379806435,1755414647928,-965.49,0.00020435,2]
[379806436,1755414647938,-480.0,0.00020435,2]
[379806437,1755414647949,-480.0,0.00020435,2]
[379806438,1755414647960,-480.0,0.00020435,2]
[379806439,1755414647969,-480.0,0.00020435,2]
[379806440,1755414647980,-4724.13,0.00020435,2]
[379806441,1755414647990,-430.68,0.00020435,2]
[379806442,1755414647999,-371.03,0.00020435,2]
[379806443,1755414648009,-480.0,0.00020435,2]
[379806444,1755414648019,-480.0,0.00020435,2]
[379806445,1755414648029,-480.0,0.00020436,2]
[379806446,1755414648038,-480.0,0.00020436,2]
[379806447,1755414648047,-484.26566027,0.00020436,2]
[379806448,1755414648057,-663.34,0.00020436,2]
[379806449,1755414648067,-470.44422325,0.00020436,2]
[379806450,1755414648076,-480.0,0.00020436,2]
[379806451,1755414648085,-480.0,0.00020436,2]
[379806452,1755414648095,-483.56929061,0.00020436,2]
[379806453,1755414648105,-177.95537248,0.00020436,2]
[379806454,1755414648115,-482.25843446,0.00020436,2]
[379806455,1755414648128,-1101.38,0.00020436,2]
[379806456,1755414648137,-480.0,0.00020436,2]
[379806457,1755414648147,-486.84428096,0.00020436,2]
[379806458,1755414648156,-480.0,0.00020436,2]
[379806459,1755414648167,-592.12254413,0.00020436,2]
[379806460,1755414648176,-480.0,0.00020436,2]
[379806461,1755414648186,-480.0,0.00020436,2]
[379806462,1755414648196,-1555.9,0.00020436,2]
[379806463,1755414648206,-480.0,0.00020436,2]
[379806464,1755414648215,-480.0,0.00020436,2]
[379806465,1755414648225,-480.0,0.00020436,2]
[379806466,1755414648234,-230.3,0.0002044,2]
[379806467,1755414648246,-500.0,0.00020473,2]
[379806468,1755414648255,-500.0,0.00020473,2]
[379806469,1755414648264,-501.25711225,0.00020473,2]
[379806470,1755414648274,-500.0,0.00020473,2]
[379806471,1755414648284,-501.0519514,0.00020473,2]
[379806472,1755414648293,-502.13602325,0.00020473,2]
[379806473,1755414648302,-500.0,0.00020473,2]
[379806474,1755414648311,-500.0,0.00020473,2]
[379806475,1755414648321,-500.0,0.00020473,2]
[379806476,1755414648331,-500.0,0.00020473,2]
[379806477,1755414648339,-500.0,0.00020473,2]
[379806478,1755414648349,-500.71946824,0.00020473,2]
[379806479,1755414648358,-500.0,0.00020473,2]
[379806480,1755414648367,-500.0,0.00020473,2]
[379806481,1755414648376,-500.0,0.00020473,2]
[379806482,1755414648386,-500.0,0.00020473,2]
[379806483,1755414648395,-500.0,0.00020473,2]
[379806484,1755414648405,-500.0,0.00020473,2]
[379806485,1755414648415,-500.0,0.00020473,2]
[379806486,1755414648424,-501.23763847,0.00020473,2]
[379806487,1755414648433,-500.0,0.00020473,2]
[379806488,1755414648443,-500.0,0.00020473,2]
[379806489,1755414648452,-503.14218128,0.00020473,2]
[379806490,1755414648461,-500.0,0.00020473,2]
[379806491,1755414648471,-500.0,0.00020473,2]
[379806492,1755414648480,-517.02090165,0.00020473,2]
[379806493,1755414648489,-500.0,0.00020473,2]
[379806494,1755414648499,-500.0,0.00020473,2]
[379806495,1755414648508,-500.0,0.00020473,2]
[379806496,1755414648518,-428.16216798,0.00020473,2]
[379806497,1755414648527,-500.0,0.00020473,2]
[379806498,1755414648537,-500.0,0.00020473,2]
[379806499,1755414648546,-500.0,0.00020473,2]
[379806500,1755414648555,-500.0,0.00020473,2]
[379806501,1755414648564,-500.0,0.00020473,2]
[379806502,1755414648575,-500.0,0.00020473,2]
[379806503,1755414648584,-158.2102775,0.00020473,2]
[379806504,1755414648593,-500.0,0.00020473,2]
[379806505,1755414648603,-500.0,0.00020473,2]
[379806506,1755414648613,-500.0,0.00020473,2]
[379806507,1755414648623,-500.0,0.00020473,2]
[379806508,1755414648632,-501.2936446,0.00020473,2]
[379806509,1755414648642,-156.37978624,0.00020493,2]
[379806510,1755414648651,-160.0,0.00020497,2]
[379806511,1755414648660,-16679.72,0.000205,2]
[379806512,1755414648670,-363125.98,0.000205,2]
[379806513,1755414648679,-151.0,0.000205,4]
[379806514,1755414648689,-30000.0,0.000205,2]
[379806515,1755414648699,-30000.0,0.000205,2]
[379806516,1755414648708,-151.0,0.000205,2]
[379806517,1755414648717,-151.709339,0.000205,2]
[379806518,1755414648726,-583.003,0.000205,2]
[379806519,1755414648736,-198896.57,0.000205,2]
[379806520,1755414648745,-151.0,0.000205,2]
[379806521,1755414648754,-151.0,0.000205,2]
[379806522,1755414648764,-151.0,0.000205,2]
[379806523,1755414648773,-151.0,0.000205,2]
[379806524,1755414648783,-1000.0,0.000205,2]
[379806525,1755414648793,-1000.0,0.000205,2]
[379806526,1755414648802,-1000.0,0.000205,2]
[379806527,1755414648812,-1000.0,0.000205,2]
[379806528,1755414648821,-1000.0,0.000205,2]
[379806529,1755414648830,-1000.0,0.000205,2]
[379806530,1755414648839,-1000.0,0.000205,2]
[379806531,1755414648848,-1000.0,0.000205,2]
[379806532,1755414648857,-1000.0,0.000205,2]
[379806533,1755414648867,-1000.0,0.000205,2]
[379806534,1755414648876,-453.850081,0.000205,2]
[379806535,1755414648885,-151.0,0.000205,2]
[379806536,1755414648895,-152.236241,0.000205,2]
[379806537,1755414648904,-253.993876,0.000205,2]
[379806538,1755414648914,-253.993876,0.000205,2]
[379806539,1755414648924,-151.0,0.000205,2]
[379806540,1755414648934,-151.0,0.000205,2]
[379806541,1755414648943,-453.543214,0.000205,2]
[379806542,1755414648953,-453.543214,0.000205,2]
[379806543,1755414648962,-151.0,0.000205,2]
[379806544,1755414648972,-151.0,0.000205,2]
[379806545,1755414648981,-151.0,0.000205,2]
[379806546,1755414648990,-152.373275,0.000205,2]
[379806547,1755414649000,-151.0,0.000205,2]
[379806548,1755414649009,-151.0,0.000205,2]
[379806549,1755414649018,-417.184506,0.000205,2]
[379806550,1755414649027,-977.132488,0.000205,2]
[379806551,1755414649036,-977.132488,0.000205,2]
[379806552,1755414649045,-417.184506,0.000205,2]
[379806553,1755414649055,-977.132488,0.000205,2]
[379806554,1755414649064,-977.132488,0.000205,2]
[379806555,1755414649073,-151.0,0.000205,2]
[379806556,1755414649083,-151.0,0.000205,2]
[379806557,1755414649092,-498.87371,0.000205,2]
[379806558,1755414649101,-498.87371,0.000205,2]
[379806559,1755414649110,-498.87371,0.000205,2]
[379806560,1755414649122,-498.87371,0.000205,2]
[379806561,1755414649132,-161.256418,0.000205,2]
[379806562,1755414649141,-161.256418,0.000205,2]
[379806563,1755414649150,-161.256418,0.000205,2]
[379806564,1755414649160,-161.256418,0.000205,2]
[379806565,1755414649170,-175.437634,0.000205,2]
[379806566,1755414649179,-175.437634,0.000205,2]
[379806567,1755414649188,-175.437634,0.000205,2]
[379806568,1755414649198,-175.437634,0.000205,2]
[379806569,1755414649207,-169.0,0.00020505,2]
[379806570,1755414649216,-480.0,0.00020519,2]
[379806571,1755414649225,-169.0,0.00020536,2]
[379806572,1755414649235,-151.0,0.00020537,2]
[379806573,1755414649244,-500.0,0.00020547,2]
[379806574,1755414649253,-230.3,0.00020568,2]
[379806575,1755414649263,-200.0,0.0002057,2]
[379806576,1755414649273,-250.0,0.00020586,2]
[379806577,1755414649282,-151.0,0.000206,4]
[379806578,1755414649292,-480.0,0.0002061,2]
[379806579,1755414649302,-480.0,0.0002061,2]
[379806580,1755414649311,-893.71,0.0002061,2]
[379806581,1755414649320,-480.0,0.0002061,2]
[379806582,1755414649330,-1148.62,0.0002061,2]
[379806583,1755414649340,-480.0,0.0002061,2]
[379806584,1755414649350,-480.0,0.0002061,2]
[379806585,1755414649359,-576.84,0.0002061,2]
[379806586,1755414649369,-480.0,0.0002061,2]
[379806587,1755414649379,-480.0,0.0002061,2]
[379806588,1755414649389,-480.0,0.0002061,2]
[379806589,1755414649399,-480.0,0.0002061,2]
[379806590,1755414649408,-480.0,0.0002061,2]
[379806591,1755414649418,-1822.79,0.0002061,2]
[379806592,1755414649427,-480.0,0.0002061,2]
[379806593,1755414649438,-1646.01,0.0002061,2]
[379806594,1755414649447,-480.0,0.0002061,2]
[379806595,1755414649457,-240.52,0.0002061,2]
[379806596,1755414649467,-480.0,0.0002061,2]
[379806597,1755414649477,-6414.92,0.0002061,2]
[379806598,1755414649488,-480.0,0.0002061,2]
[379806599,1755414649498,-480.0,0.0002061,2]
[379806600,1755414649508,-480.0,0.0002061,2]
[379806601,1755414649518,-480.0,0.0002061,2]
[379806602,1755414649528,-551.94,0.0002061,2]
[379806603,1755414649537,-514.18,0.0002061,2]
[379806604,1755414649547,-480.0,0.0002061,2]
[379806605,1755414649556,-480.0,0.0002061,2]
[379806606,1755414649566,-732.66,0.0002061,2]
[379806607,1755414649575,-480.0,0.0002061,2]
[379806608,1755414649584,-480.0,0.0002061,2]
[379806609,1755414649593,-480.0,0.0002061,2]
[379806610,1755414649602,-480.0,0.0002061,2]
[379806611,1755414649611,-480.0,0.0002061,2]
[379806612,1755414649621,-480.0,0.0002061,2]
[379806613,1755414649631,-480.0,0.0002061,2]
[379806614,1755414649640,-480.0,0.0002061,2]
[379806615,1755414649649,-480.0,0.0002061,2]
[379806616,1755414649660,-480.0,0.0002061,2]
[379806617,1755414649670,-480.0,0.0002061,2]
[379806618,1755414649679,-480.0,0.0002061,2]
[379806619,1755414649688,-5905.8612671,0.00020651,2]
[379806620,1755414649697,-169.0,0.0002068,2]
[379806621,1755414649709,-230.3,0.00020696,2]
[379806622,1755414649718,-169.0,0.00020699,2]
[379806623,1755414649728,-3622.325386,0.000207,2]
[379806624,1755414649738,-151.0,0.000207,3]
[379806625,1755414649748,-422.84,0.00020708,2]
[379806626,1755414649758,-480.0,0.00020708,2]
[379806627,1755414649768,-480.0,0.00020708,2]
[379806628,1755414649778,-1003.58,0.00020708,2]
[379806629,1755414649788,-1542.42,0.00020708,2]
[379806630,1755414649797,-995.53,0.00020708,2]
[379806631,1755414649807,-480.0,0.00020708,2]
[379806632,1755414649817,-480.0,0.00020708,2]
[379806633,1755414649827,-480.0,0.00020708,2]
[379806634,1755414649837,-1337.7,0.00020708,2]
[379806635,1755414649847,-480.0,0.00020708,2]
[379806636,1755414649856,-2855.58,0.00020708,2]
[379806637,1755414649866,-480.0,0.00020708,2]
[379806638,1755414649875,-480.0,0.00020708,2]
[379806639,1755414649884,-959.07,0.00020708,2]
[379806640,1755414649894,-428.71351496,0.00020709,2]
[379806641,1755414649902,-480.0,0.00020709,2]
[379806642,1755414649912,-185.08,0.00020709,2]
[379806643,1755414649921,-515.0,0.00020709,2]
[379806644,1755414649931,-480.0,0.00020709,2]
[379806645,1755414649940,-282.30006992,0.00020709,2]
[379806646,1755414649949,-353.76,0.00020709,2]
[379806647,1755414649958,-480.0,0.00020709,2]
[379806648,1755414649967,-568.7,0.00020709,2]
[379806649,1755414649976,-480.0,0.00020709,2]
[379806650,1755414649985,-480.0,0.00020709,2]
[379806651,1755414649994,-480.0,0.00020709,2]
[379806652,1755414650004,-480.0,0.00020709,2]
[379806653,1755414650013,-480.0,0.00020709,2]
[379806654,1755414650022,-860.61,0.00020709,2]
[379806655,1755414650032,-480.0,0.00020709,2]
[379806656,1755414650041,-292.55333489,0.00020709,2]
[379806657,1755414650051,-480.0,0.00020709,2]
[379806658,1755414650060,-480.0,0.00020709,2]
[379806659,1755414650069,-480.0,0.00020709,2]
[379806660,1755414650078,-420.0,0.00020709,2]
[379806661,1755414650087,-497.19,0.00020709,2]
[379806662,1755414650096,-480.0,0.00020709,2]
[379806663,1755414650106,-480.0,0.00020709,2]
[379806664,1755414650115,-480.0,0.00020709,2]
[379806665,1755414650128,-480.0,0.00020709,2]
[379806666,1755414650137,-6884.82,0.00020709,2]
[379806667,1755414650147,-480.0,0.00020709,2]
[379806668,1755414650155,-480.0,0.00020709,2]
[379806669,1755414650166,-480.0,0.00020709,2]
[379806670,1755414650176,-4724.13,0.00020709,2]
[379806671,1755414650186,-480.0,0.00020709,2]
[379806672,1755414650196,-480.0,0.00020709,2]
[379806673,1755414650206,-16985.06310955,0.00020709,2]
[379806674,1755414650215,-480.0,0.0002071,2]
[379806675,1755414650225,-273.48162258,0.0002071,2]
[379806676,1755414650235,-663.34,0.0002071,2]
[379806677,1755414650244,-480.0,0.0002071,2]
[379806678,1755414650253,-480.0,0.0002071,2]
[379806679,1755414650263,-1101.38,0.0002071,2]
[379806680,1755414650272,-404.08609851,0.0002071,2]
[379806681,1755414650281,-483.42852544,0.0002071,2]
[379806682,1755414650291,-265.08,0.0002071,2]
[379806683,1755414650300,-480.0,0.0002071,2]
[379806684,1755414650309,-1555.9,0.0002071,2]
[379806685,1755414650319,-480.0,0.0002071,2]
[379806686,1755414650328,-480.0,0.0002071,2]
[379806687,1755414650337,-480.0,0.0002071,2]
[379806688,1755414650347,-151.0,0.00020723,2]
[379806689,1755414650356,-151.0,0.00020723,2]
[379806690,1755414650365,-151.0,0.00020723,2]
[379806691,1755414650374,-152.69671986,0.00020723,2]
[379806692,1755414650384,-151.0,0.00020723,2]
[379806693,1755414650394,-151.0,0.00020723,2]
[379806694,1755414650403,-151.0,0.00020723,2]
[379806695,1755414650412,-151.0,0.00020723,2]
[379806696,1755414650422,-1151.0,0.00020723,2]
[379806697,1755414650433,-500.0,0.00020723,2]
[379806698,1755414650443,-151.0,0.00020723,2]
[379806699,1755414650453,-201.65566068,0.00020723,2]
[379806700,1755414650462,-500.0,0.00020723,2]
[379806701,1755414650471,-151.0,0.00020723,2]
[379806702,1755414650481,-151.0,0.00020723,2]
[379806703,1755414650490,-151.0,0.00020723,2]
[379806704,1755414650609,-151.2569465,0.00020723,2]
[379806705,1755414650620,-151.0,0.00020723,2]
[379806706,1755414650630,-151.0,0.00020723,2]
[379806707,1755414650639,-189.19364358,0.00020723,2]
[379806708,1755414650648,-151.0,0.00020723,2]
[379806709,1755414650657,-500.0,0.00020723,2]
[379806710,1755414650667,-151.0,0.00020723,2]
[379806711,1755414650675,-151.0,0.00020723,2]
[379806712,1755414650684,-151.0,0.00020723,2]
[379806713,1755414650693,-500.0,0.00020723,2]
[379806714,1755414650703,-151.45690645,0.00020723,2]
[379806715,1755414650712,-151.0,0.00020723,2]
[379806716,1755414650721,-421.47851009,0.00020724,2]
[379806717,1755414650730,-1684.22812634,0.00020724,2]
[379806718,1755414650739,-189.28957646,0.00020724,2]
[379806719,1755414650749,-756.40114755,0.00020724,2]
[379806720,1755414650758,-3394.0,0.00020724,2]
[379806721,1755414650767,-500.0,0.00020725,2]
[379806722,1755414650776,-500.0,0.0002073,2]
[379806723,1755414650786,-156.37978624,0.00020767,2]
[379806724,1755414650796,-156.37978624,0.00020767,2]
[379806725,1755414650805,-972.0,0.00020775,2]
[379806726,1755414650814,-637.0,0.00020775,2]
[379806727,1755414650823,-2153.0,0.00020776,2]
[379806728,1755414650832,-408.0,0.00020776,2]
[379806729,1755414650841,-422.367,0.00020776,2]
[379806730,1755414650850,-480.0,0.00020793,2]
[379806731,1755414650859,-1070.25,0.00020814,2]
[379806732,1755414650869,-230.3,0.00020824,3]
[379806733,1755414650878,-151.0,0.00020836,2]
[379806734,1755414650887,-150.0,0.00020858,2]
[379806735,1755414650896,-150.0,0.00020858,2]
[379806736,1755414650905,-150.0,0.00020858,2]
[379806737,1755414650917,-166.0,0.00020869,2]
[379806738,1755414650926,-1762.0,0.00020869,2]
[379806739,1755414650936,-1762.0,0.00020869,2]
[379806740,1755414650945,-1762.0,0.00020869,2]
[379806741,1755414650954,-1762.0,0.00020869,2]
[379806742,1755414650963,-1762.0,0.00020869,2]
[379806743,1755414650972,-1762.0,0.00020869,2]
[379806744,1755414650981,-1762.0,0.00020869,2]
[379806745,1755414650990,-1762.0,0.00020869,2]
[379806746,1755414651000,-1762.0,0.00020869,2]
[379806747,1755414651009,-1762.0,0.00020869,2]
[379806748,1755414651020,-1762.0,0.00020869,2]
[379806749,1755414651029,-1762.0,0.00020869,2]
[379806750,1755414651039,-1762.0,0.00020869,2]
[379806751,1755414651058,-1762.0,0.00020869,2]
[379806752,1755414651069,-1762.0,0.00020869,2]
[379806753,1755414651079,-1762.0,0.00020869,2]
[379806754,1755414651089,-1762.0,0.00020869,2]
[379806755,1755414651099,-1762.0,0.00020869,2]
[379806756,1755414651109,-1762.0,0.00020869,2]
[379806757,1755414651122,-1762.0,0.00020869,2]
[379806758,1755414651133,-1762.0,0.00020869,2]
[379806759,1755414651143,-1762.0,0.00020869,2]
[379806760,1755414651153,-1762.0,0.00020869,2]
[379806761,1755414651163,-326.0,0.00020869,2]
[379806762,1755414651174,-1762.0,0.00020869,2]
[379806763,1755414651184,-326.0,0.00020869,2]
[379806764,1755414651193,-1762.0,0.00020869,2]
[379806765,1755414651205,-1762.0,0.00020869,2]
[379806766,1755414651215,-326.0,0.00020869,2]
[379806767,1755414651226,-1762.0,0.00020869,2]
[379806768,1755414651237,-326.0,0.00020869,2]
[379806769,1755414651247,-1762.0,0.00020869,2]
[379806770,1755414651257,-326.0,0.00020869,2]
[379806771,1755414651267,-1762.0,0.00020869,2]